bitfinex-derivatives/quotes_BTCF0:USTF0_20250806
["timestamp","ask_amount","ask_price","bid_price","bid_amount"]
[1754443190838,0.1757082,113830.0,113820.0,0.11064063]
[1754443191049,0.1757236,113820.0,113810.0,0.13444063]
[1754443191239,1.09344976,113820.0,113810.0,0.13444063]
[1754443192743,1.09344976,113820.0,113810.0,0.13644063]
[1754443193244,1.09444976,113820.0,113810.0,0.13444063]
[1754443193444,1.09444976,113820.0,113810.0,0.31017973]
[1754443193645,1.09444976,113820.0,113810.0,0.13444063]
[1754443194247,1.09444976,113820.0,113810.0,0.1342696]
[1754443194248,2.30968976,113820.0,113810.0,0.1342696]
[1754443194546,2.30968976,113820.0,113810.0,0.1104696]
[1754443195138,2.38100087,113820.0,113810.0,0.1342096]
[1754443195852,2.38100087,113820.0,113810.0,0.02374]
[1754443196861,0.1757391,113810.0,113800.0,0.1104696]
[1754443197160,0.48158526,113810.0,113800.0,0.2297196]
[1754443199555,0.49022004,113810.0,113800.0,0.2297196]
[1754443200259,0.49022004,113810.0,113800.0,0.4054739]
[1754443200755,0.49022004,113810.0,113800.0,0.2297196]
[1754443201457,0.49022004,113810.0,113800.0,0.4054739]
[1754443201654,0.79625388,113810.0,113800.0,0.4054739]
[1754443201955,1.10210004,113810.0,113800.0,0.2297196]
[1754443203255,1.10210004,113810.0,113800.0,0.2307196]
[1754443203562,1.10210004,113810.0,113800.0,0.12025]
[1754443207261,1.10210004,113810.0,113800.0,0.38315]
[1754443210458,1.10210004,113810.0,113800.0,0.28764]
[1754443210667,1.10210004,113810.0,113800.0,0.36925]
[1754443210850,1.10210004,113810.0,113800.0,0.38315]
[1754443210851,0.49022004,113810.0,113800.0,0.38315]
[1754443211051,1.10322004,113810.0,113800.0,0.5589043]
[1754443212672,1.10322004,113810.0,113800.0,0.38315]
[1754443212862,0.79737388,113810.0,113800.0,0.38315]
[1754443213057,1.10322004,113810.0,113800.0,0.38315]
[1754443213459,1.10322004,113810.0,113800.0,0.5589043]
[1754443213662,0.49022004,113810.0,113800.0,0.5589043]
[1754443213965,1.10338004,113810.0,113800.0,0.5589043]
[1754443214963,0.49022004,113810.0,113800.0,0.5589043]
[1754443215161,1.10326004,113810.0,113800.0,0.28764]
[1754443215963,1.10326004,113810.0,113800.0,0.5359943]
[1754443216264,1.10326004,113810.0,113800.0,0.36024]
[1754443216468,1.4090262,113810.0,113800.0,0.2639]
[1754443216675,1.10318004,113810.0,113800.0,0.001]
[1754443216860,1.10318004,113810.0,113800.0,0.02474]
[1754443217474,1.10322004,113810.0,113800.0,0.12025]
[1754443218166,1.10322004,113810.0,113800.0,0.07292]
[1754443218372,1.10322004,113810.0,113800.0,0.02474]
[1754443218871,1.10522004,113810.0,113800.0,0.02374]
[1754443219372,0.1757543,113800.0,113790.0,0.03343]
[1754443219573,0.48160046,113800.0,113790.0,0.32007]
[1754443219774,1.09524046,113800.0,113790.0,0.32007]
[1754443220275,1.09524046,113800.0,113790.0,0.28664]
[1754443220669,1.09524046,113800.0,113790.0,0.4634097]
[1754443221071,0.48160046,113800.0,113790.0,0.5115897]
[1754443221268,1.09516046,113800.0,113790.0,0.5589197]
[1754443221573,0.7893143,113800.0,113790.0,0.5589197]
[1754443221869,1.09516046,113800.0,113790.0,0.5589197]
[1754443222670,1.09516046,113800.0,113790.0,0.38315]
[1754443224364,1.09516046,113800.0,113790.0,0.34739]
[1754443224561,1.09516046,113800.0,113790.0,0.5231596]
[1754443224771,1.09516046,113800.0,113790.0,0.38453]
[1754443228679,1.09516046,113800.0,113790.0,0.5602997]
[1754443230484,1.09516046,113800.0,113790.0,0.38453]
[1754443231981,1.09516046,113800.0,113790.0,0.28764]
[1754443232178,1.09516046,113800.0,113790.0,0.31209]
[1754443232479,1.09444046,113800.0,113790.0,0.38371]
[1754443232679,1.09444046,113800.0,113790.0,0.5594798]
[1754443233379,1.09444046,113800.0,113790.0,0.38371]
[1754443233581,0.48160046,113800.0,113790.0,0.38371]
[1754443233881,1.09420046,113800.0,113790.0,0.38371]
[1754443234085,0.7883543,113800.0,113790.0,0.5594797]
[1754443234380,1.09420046,113800.0,113790.0,0.5594797]
[1754443234781,1.09420046,113800.0,113790.0,0.38371]
[1754443235277,1.09420046,113800.0,113790.0,0.33526]
[1754443235477,1.40004662,113800.0,113790.0,0.28764]
[1754443235777,1.09420046,113800.0,113790.0,0.28764]
[1754443235971,1.40004662,113800.0,113790.0,0.28764]
[1754443236584,1.09420046,113800.0,113790.0,0.28764]
[1754443236878,0.48160046,113800.0,113790.0,0.12081]
[1754443237083,1.09440046,113800.0,113790.0,0.12081]
[1754443237279,1.09540046,113800.0,113790.0,0.12081]
[1754443238085,1.09540046,113800.0,113790.0,0.11981]
[1754443238983,1.09440046,113800.0,113790.0,0.12081]
[1754443239184,0.1757543,113800.0,113790.0,0.12081]
[1754443239373,1.09436046,113800.0,113790.0,0.2965797]
[1754443240286,1.09436046,113800.0,113790.0,0.12081]
[1754443241692,1.40020662,113800.0,113790.0,0.02474]
[1754443242091,1.40120662,113800.0,113790.0,0.02374]
[1754443243388,1.09536046,113800.0,113790.0,0.09664]
[1754443244090,1.09636046,113800.0,113790.0,0.09664]
[1754443244695,1.09536046,113800.0,113790.0,0.09664]
[1754443245195,1.09436046,113800.0,113790.0,0.11981]
[1754443245395,1.09436046,113800.0,113790.0,0.12081]
[1754443247199,1.09436046,113800.0,113790.0,0.04919]
[1754443247403,1.40020662,113800.0,113790.0,0.02474]
[1754443247598,1.40020662,113800.0,113790.0,0.001]
[1754443247804,1.40020662,113800.0,113790.0,0.02372]
[1754443248205,1.40120662,113800.0,113790.0,0.02272]
[1754443248407,1.40220662,113800.0,113790.0,0.02272]
[1754443248805,1.40120662,113800.0,113790.0,0.02272]
[1754443249199,0.1757697,113790.0,113780.0,0.44320298]
[1754443249403,0.48161586,113790.0,113780.0,0.44320298]
[1754443249709,0.48161586,113790.0,113780.0,0.18030298]
[1754443249904,0.48161586,113790.0,113780.0,0.02272]
[1754443250501,0.1757852,113780.0,113770.0,0.25365298]
[1754443250701,1.09427136,113780.0,113770.0,0.25365298]
[1754443250900,1.09427136,113780.0,113770.0,0.42945368]
[1754443251102,1.09427136,113780.0,113770.0,0.45217368]
[1754443251599,1.09427136,113780.0,113770.0,0.11879]
[1754443251806,1.09427136,113780.0,113770.0,0.2945906]
[1754443252008,1.09427136,113780.0,113770.0,0.2955906]
[1754443253299,0.2636711,113790.0,113780.0,0.2218752]
[1754443253606,1.18247726,113790.0,113780.0,0.1159]
[1754443253907,1.18247726,113790.0,113780.0,0.2916852]
[1754443254809,1.18347726,113790.0,113780.0,0.2916852]
[1754443255507,0.8776311,113790.0,113780.0,0.2926852]
[1754443255703,1.18247726,113790.0,113780.0,0.2926852]
[1754443255905,1.18247726,113790.0,113780.0,0.2936852]
[1754443258312,1.18247726,113790.0,113780.0,0.1179]
[1754443260108,1.18247726,113790.0,113780.0,0.002]
[1754443260410,0.1758006,113770.0,113760.0,0.40282908]
[1754443260609,1.09424676,113770.0,113760.0,0.44929908]
[1754443260809,1.09424676,113770.0,113760.0,0.27348298]
[1754443260810,1.10302176,113770.0,113760.0,0.27348298]
[1754443261305,1.10302176,113770.0,113760.0,0.02334]
[1754443261703,1.10302176,113770.0,113760.0,0.02734]
[1754443263009,1.10302176,113770.0,113760.0,0.004]
[1754443264209,1.10302176,113770.0,113760.0,0.002]
[1754443264409,1.10602176,113770.0,113760.0,0.02334]
[1754443265918,1.10594176,113770.0,113760.0,0.1159]
[1754443266616,1.10594176,113770.0,113760.0,0.06943]
[1754443266819,1.10594176,113770.0,113760.0,0.1159]
[1754443267313,1.10394176,113770.0,113760.0,0.1159]
[1754443267520,1.10298176,113770.0,113760.0,0.2917161]
[1754443267716,0.49042176,113770.0,113760.0,0.2917161]
[1754443267917,1.10286176,113770.0,113760.0,0.2917161]
[1754443268117,1.10282176,113770.0,113760.0,0.2917161]
[1754443269221,0.49042176,113770.0,113760.0,0.2917161]
[1754443269418,1.10294176,113770.0,113760.0,0.2917161]
[1754443269614,0.49042176,113770.0,113760.0,0.2917161]
[1754443269814,1.10310176,113770.0,113760.0,0.2917161]
[1754443270522,1.09432676,113770.0,113760.0,0.2927161]
[1754443270720,0.1758006,113770.0,113760.0,0.2927161]
[1754443271035,0.7884406,113770.0,113760.0,0.2937161]
[1754443271826,1.09428676,113770.0,113760.0,0.2937161]
[1754443272026,1.09420676,113770.0,113760.0,0.2937161]
[1754443272415,0.7883606,113770.0,113760.0,0.5566161]
[1754443272615,1.10304569,113770.0,113760.0,0.5566161]
[1754443273522,1.10304569,113770.0,113760.0,0.3808]
[1754443273724,1.10284569,113770.0,113760.0,0.33433]
[1754443273920,1.10284569,113770.0,113760.0,0.31321]
[1754443274426,1.10284569,113770.0,113760.0,0.31221]
[1754443274613,1.40869185,113770.0,113750.0,0.15758298]
[1754443274818,0.78750842,113760.0,113750.0,0.15758298]
[1754443275025,0.1758315,113750.0,113740.0,0.18092298]
[1754443275218,1.09403766,113750.0,113740.0,0.18092298]
[1754443275414,1.09403766,113750.0,113740.0,0.15758298]
[1754443275621,0.48167766,113750.0,113740.0,0.18092298]
[1754443275820,1.09399766,113750.0,113740.0,0.02334]
[1754443276224,1.09399766,113750.0,113730.0,0.46856053]
[1754443276225,0.1758469,113740.0,113730.0,0.18163923]
[1754443276428,0.48169306,113740.0,113730.0,0.25307923]
[1754443276626,0.1758469,113740.0,113730.0,0.02405625]
[1754443276827,0.48169306,113740.0,113730.0,0.02405625]
[1754443277014,0.48169306,113740.0,113730.0,0.19991875]
[1754443277219,0.48169306,113740.0,113730.0,0.29247875]
[1754443277627,0.48169306,113740.0,113730.0,0.29447875]
[1754443278125,0.48169306,113740.0,113730.0,0.29647875]
[1754443278932,0.30584616,113740.0,113730.0,0.29647875]
[1754443279820,0.61176,113740.0,113730.0,0.29647875]
[1754443280226,0.91760616,113740.0,113730.0,0.29547875]
[1754443280430,0.48169316,113740.0,113730.0,0.29547875]
[1754443280725,1.09349316,113740.0,113730.0,0.29547875]
[1754443281029,0.48169316,113740.0,113730.0,0.29547875]
[1754443281330,1.09341316,113740.0,113730.0,0.29547875]
[1754443281827,0.85845733,113740.0,113730.0,0.00371625]
[1754443282024,0.85845733,113740.0,113710.0,0.18074298]
[1754443282025,0.1758779,113720.0,113710.0,0.18074298]
[1754443282229,1.09440406,113720.0,113710.0,0.06908]
[1754443282525,1.09440406,113720.0,113710.0,0.2908333]
[1754443282932,1.09440406,113720.0,113710.0,0.11494]
[1754443283132,0.1758932,113710.0,113700.0,0.1758989]
[1754443283334,0.48173936,113710.0,113700.0,0.2908389]
[1754443283531,0.48172756,113720.0,113710.0,0.3787645]
[1754443283728,1.09472756,113720.0,113710.0,0.3807645]
[1754443283930,1.09472756,113720.0,113710.0,0.336792]
[1754443284124,0.7888814,113720.0,113710.0,0.336792]
[1754443284330,1.09472756,113720.0,113710.0,0.336792]
[1754443285240,0.48172756,113720.0,113710.0,0.336792]
[1754443285435,0.7892814,113720.0,113710.0,0.336792]
[1754443285636,0.61362686,113730.0,113720.0,0.2122277]
[1754443285841,1.22702686,113730.0,113720.0,0.2908177]
[1754443286143,1.50691063,113740.0,113730.0,0.2908023]
[1754443286330,2.12043063,113740.0,113730.0,0.2908023]
[1754443286535,2.42627679,113740.0,113730.0,0.2908023]
[1754443286834,1.28709033,113740.0,113730.0,0.2908023]
[1754443287043,0.1758468,113740.0,113730.0,0.2908023]
[1754443287429,0.61356876,113750.0,113730.0,0.11494]
[1754443287635,0.52564716,113750.0,113740.0,0.2907868]
[1754443287841,1.13944716,113750.0,113740.0,0.2907868]
[1754443288241,0.52564716,113750.0,113740.0,0.02316]
[1754443288429,1.13952716,113750.0,113740.0,0.02316]
[1754443288634,0.1758468,113740.0,113730.0,0.2311301]
[1754443288837,0.53494131,113740.0,113730.0,0.02316]
[1754443289040,0.53494131,113740.0,113730.0,0.1990222]
[1754443289340,0.53494131,113740.0,113730.0,0.2311422]
[1754443289538,0.53494131,113740.0,113730.0,0.2449422]
[1754443289734,0.53494131,113740.0,113730.0,0.2908022]
[1754443290134,0.53594131,113740.0,113730.0,0.5537022]
[1754443290543,0.53694131,113740.0,113730.0,0.5537022]
[1754443293946,0.53694131,113740.0,113730.0,0.28606]
[1754443294148,0.53694131,113740.0,113730.0,0.31818]
[1754443294344,0.53694131,113740.0,113730.0,0.5078422]
[1754443294547,0.53694131,113740.0,113730.0,0.5537022]
[1754443295248,0.36109451,113740.0,113730.0,0.5537022]
[1754443295449,0.53694121,113740.0,113730.0,0.5537022]
[1754443295847,0.53694121,113740.0,113730.0,0.37784]
[1754443296549,0.53694121,113740.0,113730.0,0.5537023]
[1754443297146,0.53594121,113740.0,113730.0,0.37784]
[1754443297348,0.53794121,113740.0,113730.0,0.37784]
[1754443297543,0.53894121,113740.0,113730.0,0.37784]
[1754443297746,0.53694121,113740.0,113730.0,0.37784]
[1754443297945,0.53794121,113740.0,113730.0,0.37784]
[1754443298650,0.53794121,113740.0,113730.0,0.5537022]
[1754443298847,0.53794121,113740.0,113730.0,0.37784]
[1754443299042,0.53794121,113740.0,113730.0,0.2629]
[1754443299246,0.53794121,113740.0,113730.0,0.28606]
[1754443299446,0.53594121,113740.0,113730.0,0.28706]
[1754443299651,0.53494121,113740.0,113730.0,0.28706]
[1754443299948,0.53694121,113740.0,113730.0,0.28706]
[1754443300144,0.53694121,113740.0,113730.0,0.28606]
[1754443300344,0.53794121,113740.0,113730.0,0.28606]
[1754443301049,0.53794121,113740.0,113730.0,0.2629]
[1754443301253,0.53794121,113740.0,113730.0,0.28606]
[1754443301745,0.53794121,113740.0,113730.0,0.2629]
[1754443301952,0.1758622,113730.0,113720.0,0.28606]
[1754443302145,1.14903671,113730.0,113720.0,0.4940577]
[1754443302352,1.14903671,113730.0,113720.0,0.5537177]
[1754443303644,1.15003671,113730.0,113720.0,0.5537177]
[1754443304153,0.7909422,113730.0,113720.0,0.5537177]
[1754443304449,1.15003671,113730.0,113720.0,0.5537177]
[1754443304854,0.53595671,113730.0,113720.0,0.5537177]
[1754443305054,0.7908222,113730.0,113720.0,0.5537177]
[1754443306142,1.14991671,113730.0,113720.0,0.5537177]
[1754443306342,1.14891671,113730.0,113720.0,0.5557177]
[1754443307261,1.14891671,113730.0,113720.0,0.5547177]
[1754443307555,1.14991671,113730.0,113720.0,0.5537177]
[1754443307855,1.14991671,113730.0,113720.0,0.37784]
[1754443308856,1.09727857,113730.0,113720.0,0.37784]
[1754443309156,1.09727857,113730.0,113720.0,0.5537177]
[1754443311054,1.09727857,113730.0,113720.0,0.37784]
[1754443311255,1.09727857,113730.0,113720.0,0.5537177]
[1754443311454,1.09727857,113730.0,113720.0,0.37784]
[1754443311656,1.09727857,113730.0,113720.0,0.11494]
[1754443311857,1.09727857,113730.0,113720.0,0.2908177]
[1754443312462,1.09727857,113730.0,113720.0,0.2448976]
[1754443312663,1.09727857,113730.0,113720.0,0.2914876]
[1754443313060,1.09627857,113730.0,113720.0,0.2914876]
[1754443313260,1.09727857,113730.0,113720.0,0.2914876]
[1754443315365,1.09627857,113730.0,113720.0,0.2914876]
[1754443315555,0.48331857,113730.0,113720.0,0.2914876]
[1754443315752,1.09631857,113730.0,113720.0,0.2914876]
[1754443315963,1.09531857,113730.0,113720.0,0.2914876]
[1754443316262,1.09631857,113730.0,113720.0,0.2914876]
[1754443316463,0.7898622,113730.0,113720.0,0.2914876]
[1754443316659,0.48331857,113730.0,113720.0,0.2914876]
[1754443316861,0.7897422,113730.0,113720.0,0.2914876]
[1754443317260,1.09619857,113730.0,113720.0,0.2924876]
[1754443317563,0.7896622,113730.0,113720.0,0.2924876]
[1754443318765,0.7886622,113730.0,113720.0,0.2934876]
[1754443319264,0.3077493,113740.0,113730.0,0.2931922]
[1754443319464,1.22696567,113740.0,113730.0,0.2931922]
[1754443320365,1.22696567,113740.0,113730.0,0.11733]
[1754443320568,1.22696567,113740.0,113720.0,0.28948398]
[1754443320569,0.1758622,113730.0,113720.0,0.51343978]
[1754443320762,0.48231857,113730.0,113720.0,0.58267978]
[1754443321960,0.48231857,113730.0,113720.0,0.58367978]
[1754443322162,1.09539857,113730.0,113720.0,0.58367978]
[1754443322567,1.09539857,113730.0,113720.0,0.84657978]
[1754443322759,1.09539857,113730.0,113720.0,0.84757978]
[1754443324067,0.1758622,113730.0,113720.0,0.84757978]
[1754443324568,0.7890622,113730.0,113720.0,0.84757978]
[1754443325268,0.1758622,113730.0,113720.0,0.84757978]
[1754443325470,0.7890622,113730.0,113720.0,0.84757978]
[1754443326464,0.43835967,113730.0,113710.0,0.110594]
[1754443326661,0.2198405,113730.0,113720.0,0.2932077]
[1754443326856,1.78647927,113740.0,113730.0,0.1912122]
[1754443327071,2.35571507,113740.0,113730.0,0.11733]
[1754443327267,0.1758777,113720.0,113710.0,0.2567308]
[1754443327570,1.40199044,113720.0,113710.0,0.02265]
[1754443327971,1.09553407,113720.0,113710.0,0.02265]
[1754443328163,0.1758932,113710.0,113700.0,0.02265]
[1754443328370,0.1759086,113700.0,113690.0,0.4500146]
[1754443328568,1.09620497,113700.0,113690.0,0.4500146]
[1754443328958,1.09620497,113700.0,113690.0,0.2275005]
[1754443329164,0.1759241,113690.0,113680.0,0.70116984]
[1754443329466,0.48238047,113690.0,113680.0,0.74775984]
[1754443329771,0.48238047,113690.0,113680.0,0.51999765]
[1754443330669,0.48238047,113690.0,113680.0,0.54280765]
[1754443330870,0.48638047,113690.0,113680.0,0.54380765]
[1754443331172,0.48638047,113690.0,113680.0,0.45323325]
[1754443331362,0.48638047,113690.0,113680.0,0.48599325]
[1754443331560,0.48638047,113690.0,113680.0,0.28114275]
[1754443331561,0.49138047,113690.0,113680.0,0.28114275]
[1754443331767,0.1849241,113690.0,113680.0,0.29497275]
[1754443331965,0.184924,113690.0,113680.0,0.29497275]
[1754443332158,0.009,113690.0,113680.0,0.60142912]
[1754443332359,0.62268,113690.0,113680.0,0.60142912]
[1754443332560,0.62268,113690.0,113680.0,0.29497275]
[1754443332760,0.798604,113690.0,113680.0,0.49982325]
[1754443332965,0.62268,113690.0,113680.0,0.49982325]
[1754443333371,1.17584718,113690.0,113680.0,0.49982325]
[1754443333564,0.25571081,113690.0,113680.0,0.49982325]
[1754443333764,0.69338681,113690.0,113680.0,0.49982325]
[1754443334862,0.86931081,113690.0,113680.0,0.49982325]
[1754443335066,0.86911081,113690.0,113680.0,0.49982325]
[1754443336777,0.07978681,113690.0,113680.0,0.49982325]
[1754443336982,0.61936,113690.0,113680.0,0.85911378]
[1754443337172,0.61952,113690.0,113680.0,0.85911378]
[1754443337878,0.61952,113690.0,113680.0,0.49982325]
[1754443338378,0.7954441,113690.0,113680.0,0.49982325]
[1754443338784,0.7954441,113690.0,113680.0,0.29497275]
[1754443339086,0.61956,113690.0,113680.0,0.29497275]
[1754443340086,0.61956,113690.0,113680.0,0.45300818]
[1754443341486,0.006,113690.0,113680.0,0.45300818]
[1754443341893,0.61928,113690.0,113680.0,0.45300818]
[1754443342094,0.61924,113690.0,113680.0,0.45300818]
[1754443342388,0.006,113690.0,113680.0,0.71590818]
[1754443342593,0.006,113690.0,113680.0,1.07519871]
[1754443342594,0.61936,113690.0,113680.0,1.07519871]
[1754443343194,0.006,113690.0,113680.0,1.07519871]
[1754443343392,0.61952,113690.0,113680.0,0.71590818]
[1754443344891,0.006,113690.0,113680.0,0.71590818]
[1754443345591,0.61924,113690.0,113680.0,1.07519871]
[1754443346192,0.006,113690.0,113680.0,1.07519871]
[1754443346386,0.61924,113690.0,113680.0,1.07519871]
[1754443346994,0.006,113690.0,113680.0,1.07519871]
[1754443347294,0.619,113690.0,113680.0,1.07519871]
[1754443347495,0.006,113690.0,113680.0,1.07519871]
[1754443348393,0.006,113690.0,113680.0,1.28822671]
[1754443348796,0.006,113690.0,113680.0,1.13019128]
[1754443349097,0.006,113690.0,113680.0,0.77090075]
[1754443349296,0.006,113690.0,113680.0,1.13019128]
[1754443350084,1e-07,113690.0,113680.0,1.39309128]
[1754443350289,0.2198402,113730.0,113720.0,0.2948477]
[1754443350492,0.7885944,113730.0,113720.0,0.2948477]
[1754443350792,1.5242712,113740.0,113730.0,0.2948322]
[1754443351099,2.49624173,113740.0,113730.0,0.2948322]
[1754443351298,0.66704173,113740.0,113730.0,0.2948322]
[1754443351495,0.9203512,113740.0,113730.0,0.2948322]
[1754443352390,0.9253512,113740.0,113730.0,0.2948322]
[1754443352583,0.93409607,113740.0,113730.0,0.2807822]
[1754443353395,0.18960487,113740.0,113730.0,0.2475922]
[1754443353695,0.80188487,113740.0,113730.0,0.2948322]
[1754443353895,0.80288487,113740.0,113730.0,0.2948322]
[1754443354591,0.19060487,113740.0,113730.0,0.2948322]
[1754443354787,1.10924057,113740.0,113730.0,0.2948322]
[1754443354999,1.10912057,113740.0,113730.0,0.2948322]
[1754443355193,0.49696057,113740.0,113730.0,0.2948322]
[1754443355394,0.62682487,113740.0,113730.0,0.2948322]
[1754443355896,0.62682487,113740.0,113730.0,0.5577322]
[1754443356503,0.62670487,113740.0,113730.0,0.5577322]
[1754443356693,0.61824,113740.0,113730.0,0.5577322]
[1754443356996,0.7940868,113740.0,113730.0,0.5577322]
[1754443357503,0.61824,113740.0,113730.0,0.5577322]
[1754443359196,0.006,113740.0,113730.0,0.5577322]
[1754443359391,0.61796,113740.0,113730.0,0.8640879]
[1754443359787,0.006,113740.0,113730.0,0.6011879]
[1754443359998,0.61796,113740.0,113730.0,0.6011879]
[1754443360897,0.61296,113740.0,113730.0,0.6011879]
[1754443361097,0.61292,113740.0,113730.0,0.6011879]
[1754443361398,0.61292,113740.0,113730.0,0.75910512]
[1754443361597,0.001,113740.0,113730.0,0.75910512]
[1754443361799,0.61284,113740.0,113730.0,0.75910512]
[1754443362299,0.61184,113740.0,113730.0,0.76010512]
[1754443362692,0.06993502,113750.0,113740.0,0.2226668]
[1754443362902,1.4800857,113760.0,113750.0,0.2948013]
[1754443363292,2.0916457,113760.0,113750.0,0.2948013]
[1754443363500,2.10039101,113760.0,113750.0,0.2948013]
[1754443363701,1.79518671,113760.0,113750.0,0.2948013]
[1754443363895,2.40666671,113760.0,113750.0,0.2948013]
[1754443364094,2.40866671,113760.0,113750.0,0.2948013]
[1754443364695,2.05835551,113760.0,113750.0,0.2948013]
[1754443364902,2.43549816,113760.0,113750.0,0.2948013]
[1754443365498,1.29789226,113760.0,113750.0,0.2807513]
[1754443365696,1.21836,113760.0,113750.0,0.864057]
[1754443365899,1.82956,113760.0,113750.0,0.5577013]
[1754443366100,1.83056,113760.0,113750.0,0.5577013]
[1754443366898,1.82956,113760.0,113750.0,0.5587013]
[1754443367202,0.61116,113760.0,113750.0,0.5587013]
[1754443367402,0.2724461,113770.0,113760.0,0.1758158]
[1754443367597,1.1898818,113770.0,113760.0,0.2007258]
[1754443368599,1.1459292,113770.0,113760.0,0.2007258]
[1754443368897,0.795423,113770.0,113760.0,0.2947858]
[1754443369302,0.796423,113770.0,113760.0,0.2947858]
[1754443369503,0.001,113770.0,113760.0,0.6011415]
[1754443369703,0.61188,113770.0,113760.0,0.6011415]
[1754443369899,0.001,113770.0,113760.0,0.6011415]
[1754443370104,0.175754,113800.0,113790.0,0.2338694]
[1754443370304,0.786634,113800.0,113790.0,0.2947394]
[1754443371306,1.0929897,113800.0,113790.0,0.2947394]
[1754443371705,1.0929897,113800.0,113790.0,0.2942594]
[1754443372007,0.786634,113800.0,113790.0,0.2942594]
[1754443373204,0.787634,113800.0,113790.0,0.2952594]
[1754443373602,0.786634,113800.0,113790.0,0.2952594]
[1754443373905,0.786634,113800.0,113790.0,0.2962594]
[1754443374107,0.85562842,113800.0,113790.0,0.2962594]
[1754443375920,0.85562842,113800.0,113790.0,0.5591594]
[1754443378710,0.67987442,113800.0,113790.0,0.8655151]
[1754443378909,0.67987442,113800.0,113790.0,0.6026151]
[1754443379615,0.67987442,113800.0,113790.0,0.2430194]
[1754443379814,0.67987442,113800.0,113790.0,0.2968394]
[1754443380013,0.85562842,113800.0,113790.0,0.2968394]
[1754443380211,0.85562842,113800.0,113790.0,0.2500794]
[1754443380507,1.16198412,113800.0,113790.0,0.1777694]
[1754443380713,1.16198412,113800.0,113790.0,0.2007594]
[1754443381816,1.16198412,113800.0,113790.0,0.2327694]
[1754443382022,1.16198412,113800.0,113790.0,0.2007594]
[1754443383621,0.85538842,113800.0,113790.0,0.2950194]
[1754443384127,1.16174412,113800.0,113790.0,0.2950194]
[1754443384618,0.85538842,113800.0,113790.0,0.2950194]
[1754443384918,1.16174412,113800.0,113790.0,0.2950194]
[1754443387722,1.16174412,113800.0,113790.0,0.5579194]
[1754443390021,1.16174412,113800.0,113790.0,0.4406694]
[1754443390625,1.16174412,113800.0,113790.0,0.4636594]
[1754443391527,0.55110412,113800.0,113790.0,0.4636594]
[1754443391723,0.62254917,113810.0,113800.0,0.1987442]
[1754443391923,1.23314917,113810.0,113800.0,0.1987442]
[1754443392324,1.25881729,113810.0,113800.0,0.1987442]
[1754443393629,1.33037101,113810.0,113800.0,0.1987442]
[1754443394526,1.33037101,113810.0,113800.0,0.2462442]
[1754443394829,1.33037101,113810.0,113800.0,0.2930042]
[1754443396125,1.33037101,113810.0,113800.0,0.2782542]
[1754443396530,1.33037101,113810.0,113800.0,0.2462442]
[1754443397041,1.33037101,113810.0,113800.0,0.1987442]
[1754443397539,1.33037101,113810.0,113800.0,0.02299]
[1754443399237,1.33037101,113810.0,113800.0,0.1987442]
[1754443402844,1.33037101,113810.0,113800.0,0.02299]
[1754443403939,0.1757542,113800.0,113790.0,0.5265353]
[1754443404143,0.1757542,113800.0,113790.0,0.5506453]
[1754443404144,0.4821099,113800.0,113790.0,0.5506453]
[1754443404347,0.50774571,113800.0,113790.0,0.5836553]
[1754443404640,0.50774571,113800.0,113790.0,0.6463053]
[1754443405041,0.50774571,113800.0,113790.0,0.6483053]
[1754443405246,1.11826571,113800.0,113790.0,0.6043655]
[1754443405448,1.0926299,113800.0,113790.0,0.6043655]
[1754443405848,0.4821099,113800.0,113790.0,0.6043655]
[1754443406041,1.0926299,113800.0,113790.0,0.6043655]
[1754443406342,0.4821099,113800.0,113790.0,0.6043655]
[1754443406746,1.0926299,113800.0,113790.0,0.6043655]
[1754443411556,0.7862342,113800.0,113790.0,0.9107212]
[1754443411748,0.62254957,113810.0,113800.0,0.2955242]
[1754443412046,1.18909167,113810.0,113800.0,0.2955242]
[1754443412253,0.88273597,113810.0,113800.0,0.2955242]
[1754443412455,1.18909167,113810.0,113800.0,0.2955242]
[1754443413256,1.19009167,113810.0,113800.0,0.2955242]
[1754443414159,1.19009167,113810.0,113800.0,0.2965242]
[1754443414457,1.19009167,113810.0,113800.0,0.5594242]
[1754443414959,0.88373597,113810.0,113800.0,0.5594242]
[1754443415160,0.61907097,113810.0,113800.0,0.6038799]
[1754443415356,1.4352651,113820.0,113810.0,0.2239987]
[1754443415548,2.0457051,113820.0,113810.0,0.2955087]
[1754443415750,1.82604,113820.0,113810.0,0.5584087]
[1754443415964,1.2156,113820.0,113810.0,0.8647644]
[1754443416261,1.82604,113820.0,113810.0,0.6018644]
[1754443416563,2.0017633,113820.0,113810.0,0.2955087]
[1754443416764,2.01076482,113820.0,113810.0,0.2955087]
[1754443417165,2.31712052,113820.0,113810.0,0.2955087]
[1754443417762,2.01076482,113820.0,113810.0,0.2975087]
[1754443417962,2.0017633,113820.0,113810.0,0.2975087]
[1754443418654,2.01159124,113820.0,113810.0,0.2975087]
[1754443419049,2.01059124,113820.0,113810.0,0.2975087]
[1754443419255,2.01059124,113820.0,113810.0,0.2995087]
[1754443423064,1.40015124,113820.0,113810.0,0.2995087]
[1754443423366,2.0016833,113820.0,113810.0,0.2995087]
[1754443423864,2.0016833,113820.0,113810.0,0.6058644]
[1754443424067,2.308039,113820.0,113810.0,0.2038487]
[1754443425465,2.308039,113820.0,113810.0,0.004]
[1754443426067,2.31699371,113820.0,113810.0,0.004]
[1754443426262,2.31695371,113820.0,113810.0,0.004]
[1754443427174,2.31695371,113820.0,113810.0,0.1797387]
[1754443427471,2.31695371,113820.0,113810.0,0.004]
[1754443428666,2.31695371,113820.0,113810.0,0.1797387]
[1754443428866,2.31695371,113820.0,113810.0,0.004]
[1754443434977,2.79267372,113820.0,113810.0,0.004]
[1754443435281,2.79267372,113820.0,113780.0,0.1992459]
[1754443435282,0.1757696,113790.0,113780.0,0.02347]
[1754443435473,0.175785,113780.0,113770.0,0.41498622]
[1754443435667,0.175785,113780.0,113770.0,0.293809]
[1754443435985,0.1318337,113790.0,113780.0,0.175785]
[1754443436171,0.8739897,113790.0,113780.0,0.293805]
[1754443436783,0.8819897,113790.0,113780.0,0.294805]
[1754443437478,0.8899897,113790.0,113780.0,0.294805]
[1754443440285,0.8819897,113790.0,113780.0,0.293805]
[1754443440487,0.8739897,113790.0,113780.0,0.294805]
[1754443440787,0.8749897,113790.0,113780.0,0.294805]
[1754443440980,0.8749897,113790.0,113780.0,0.557705]
[1754443442782,0.8750297,113790.0,113780.0,0.557705]
[1754443443788,0.8760297,113790.0,113780.0,0.563705]
[1754443445278,0.8750297,113790.0,113780.0,0.561705]
[1754443446291,0.8750297,113790.0,113780.0,0.564705]
[1754443446482,0.8750297,113790.0,113780.0,0.563705]
[1754443446982,0.8750297,113790.0,113780.0,0.559705]